Cogmind - Beta 13 @@@ ROGUE MODE // 2024.04.29 @ 01:06:46 Player: Wyvric Result: Destroyed by MAIN.C with Heavy Quantum Rifle Performance ------------- Evolutions (9) 4500 Regions Visited (24) 4800 Robots Destroyed (194) 970 Value Destroyed (9043) 9043 Prototype IDs (72) 1440 Alien Tech Used (6) 1200 Bonus (15349) 15349 TOTAL SCORE: 37302 Bonus ------- Triggered High Security 500 High Alert Combat Kills 2970 Follower Combat Kills 1553 Network Hubs Disabled 800 Met Zhirov 300 Met Warlord at Base 500 MAIN.C Attacked Warlord 500 Warlord Defense Kills 834 Built Enhanced Grunts 300 A7 Reached Mainframe 300 Met Warlord at Research 2000 Met MAIN.C 5000 Hacked MAIN.C 300 Met Warlord at Command 2000 Friendly Fire -2508 Cogmind --------- Core Integrity 0/1600 Matter 144/300 Energy 99/100 System Corruption 17% Temperature Cool (18) Movement Core (50) Location -1/Command Parts ------- > --- POWER (3) -------- (None) > --- PROPULSION (8) --- Improved Gyrokinetic Inverter > --- UTILITY (11) ----- Advanced Targeting Computer Armor Integrity Analyzer Graphene Brace > --- WEAPON (4) ------- (None) > --- INVENTORY (5) ---- Improved Antigrav System Core Cannon Heavy Machine Gun Vortex Lance (10) Peak State ------------ > --- POWER ------------ Micro Antimatter Reactor Vortex Chain Reactor > --- PROPULSION ------- Antigrav Array Antigrav Array Combat Linear Gravjet Combat Linear Gravjet Combat Linear Gravjet Combat Linear Gravjet > --- UTILITY ---------- Advanced Coolant Injector Large Storage Unit Spectral Analyzer Long-range Sensor Array Advanced Signal Interpreter Experimental Core Analyzer Nanoactuators Centrium Medium Armor Plating Graphene Brace Beam Splitter System Purifier > --- WEAPON ----------- Core Stripper Sigix Broadsword > --- INVENTORY -------- Improved Matter Compressor Advanced Targeting Computer Nanoactuators Improved System Shield Core Cannon Linear Accelerator Ragnarok Missile Launcher Improved Remote Datajack Vortex Lance [Rating: 241] Favorites ----------- Power Fission Core Engine Ion Engine Power Core Fission Core Reactor Vortex Chain Reactor Propulsion Combat Linear Gravjet Treads Constructs Leg Carbon-fiber Leg Wheel Compact Wheel Hover Unit Combat Linear Gravjet Flight Unit Field Propulsion Drive Utility Advanced Terrain Scan Processor Device Improved Sensor Array Storage High-capacity Storage Unit Processor Advanced Terrain Scan Processor Hackware Improved System Shield Protection Centrium Medium Armor Plating Artifact Phase Armor Weapon Power Maul Energy Gun Beamcaster Energy Cannon Proton Cannon Ballistic Gun Constructs Ballistic Cannon Bore Cannon Launcher Heavy Rocket Launcher Special Weapon Improved Remote Datajack Impact Weapon Power Maul Slashing Weapon Sigix Broadsword Piercing Weapon Vortex Lance Build | -11 -10 -10 -8 -6 -6 -6 -6 -6 -5 -5 -5 -5 -4 -4 -4 -4 -4 -3 -3 -3 -2 -2 -1 -1 ------- Run | Yrd Mat Sub Rec Fac Ext Cet Arc Hub Fac Upp Upp War Pro Fac Upp Upp Zhi Pro Res Qua Res Tes Acc Com Slots Evolved 18 | . . . . 8 . . . . 2 . . . . 2 . . . . 2 . 2 . 2 . Power 1 | . . . . . . . . . . . . . . 1 . . . . . . . . . . Propulsion 6 | . . . . 4 . . . . . . . . . . . . . . 2 . . . . . Utility 9 | . . . . 4 . . . . 2 . . . . 1 . . . . . . 1 . 1 . Weapon 2 | . . . . . . . . . . . . . . . . . . . . . 1 . 1 . Parts Attached 594 | 6 19 12 3 28 28 2 16 7 57 23 8 48 7 7 13 15 5 5 33 28 37 30 43 114 Power 29 | 1 1 1 . 2 . . . . 6 1 . . . 1 . 1 1 . 1 1 3 . . 9 Engine 4 | 1 1 1 . 1 . . . . . . . . . . . . . . . . . . . . Core 11 | . . . . 1 . . . . 6 1 . . . . . 1 . . . . . . . 2 Reactor 14 | . . . . . . . . . . . . . . 1 . . 1 . 1 1 3 . . 7 Propulsion 80 | 2 6 5 . 4 9 1 3 2 9 2 . 9 . 1 . . . . 4 5 3 . 2 13 Treads 11 | 2 3 . . . . . . . 1 1 . . . . . . . . . . . . . 4 Leg 3 | . . 3 . . . . . . . . . . . . . . . . . . . . . . Wheel 20 | . 2 2 . 4 9 1 1 . 1 . . . . . . . . . . . . . . . Hover 41 | . . . . . . . 1 2 5 . . 9 . 1 . . . . 4 5 3 . 2 9 Flight 5 | . 1 . . . . . 1 . 2 1 . . . . . . . . . . . . . . Utility 334 | 1 3 4 1 15 13 1 4 2 33 11 5 26 7 3 12 11 3 5 24 18 25 20 25 62 Device 246 | . 1 2 1 12 9 . 2 . 27 7 4 15 7 2 10 8 2 5 20 17 18 16 23 38 Storage 22 | 1 2 1 . 2 1 . 1 . 1 3 . 3 . . . 2 . . 1 . 1 . . 3 Processor 21 | . . . . . . . 1 . 2 1 . 5 . . . . . . . . 4 . . 8 Hackware 8 | . . . . 1 1 . . 1 1 . . . . . . . . . 2 . . 1 1 . Protection 36 | . . 1 . . 2 1 . 1 2 . 1 3 . 1 2 1 1 . 1 1 1 3 1 13 Artifact 1 | . . . . . . . . . . . . . . . . . . . . . 1 . . . Weapon 151 | 2 9 2 2 7 6 . 9 3 9 9 3 13 . 2 1 3 1 . 4 4 6 10 16 30 Energy Gun 27 | 1 5 . . . 1 . 1 . 1 . 2 3 . . . . . . 1 2 3 2 4 1 Energy Cannon 11 | . . . . . . . 1 . . . . . . . . . . . . . 1 3 3 3 Ballistic Gun 33 | 1 4 2 1 4 3 . 2 . 4 . 1 1 . 1 . 1 . . 1 . . . 1 6 Ballistic Cannon 12 | . . . . . . . 2 1 . . . 4 . . . . . . . . . . . 5 Launcher 21 | . . . 1 . 1 . 1 1 1 4 . 3 . . 1 . 1 . . . . . 1 6 Special Weapon 1 | . . . . . . . . . . . . . . . . . . . . . . . . 1 Impact Weapon 13 | . . . . . . . . . 3 3 . 1 . 1 . . . . 1 1 . . . 3 Slashing Weapon 10 | . . . . 3 1 . 2 1 . . . . . . . . . . . 1 . . 1 1 Piercing Weapon 23 | . . . . . . . . . . 2 . 1 . . . 2 . . 1 . 2 5 6 4 Special Melee Weapon . | . . . . . . . . . . . . . . . . . . . . . . . . . Unidentified Prototypes 21 | . 1 . . . . 1 2 . . . . 7 1 . . . 1 1 . 1 1 2 . 3 Corrupted Parts 1 | . . . . . . . . . . . . . . . . . . . . . . . . 1 System Corruption 3 | . . . . . . . . . . . . . . . . . . . . . . . . 3 Parts Lost 93 | . 3 . . 8 12 . . 10 18 5 1 . . 1 . . . . . . . . 2 33 Power 16 | . 1 . . 1 1 . . 3 3 1 . . . . . . . . . . . . . 6 Propulsion 28 | . . . . 5 5 . . 4 7 1 . . . . . . . . . . . . . 6 Utility 34 | . . . . 1 5 . . 2 5 3 . . . 1 . . . . . . . . 2 15 Weapon 15 | . 2 . . 1 1 . . 1 3 . 1 . . . . . . . . . . . . 6 Highest Loss Streak 13 | . 3 . . 3 8 . . 8 4 4 1 . . 1 . . . . . . . . 1 13 To Critical Strikes 1 | . . . . . . . . . 1 . . . . . . . . . . . . . . . Average Slot Usage (%) 82 | . 91 85 71 58 65 63 77 77 66 63 79 95 99 99 100 100 99 93 88 86 82 83 81 83 Engine 1 | . 7 14 14 3 5 6 . . . . . . . . . . . . . . . . . . Core 2 | . . . . 1 . . 5 5 3 4 5 5 5 5 5 5 4 . . . . . . . Reactor 2 | . . . . . . . . . . . . . . 5 5 5 5 5 4 8 7 8 7 5 Treads 2 | . 25 1 . . 1 . . . 1 8 11 7 . . . . . . . . . . . . Wheel 3 | . 1 10 7 13 9 12 7 5 2 . . . . . . . . . . . . . . . Hover 15 | . . . . . . . 10 18 7 5 5 18 35 31 31 31 31 30 33 28 24 25 23 24 Flight 1 | . . . . . 1 . 4 1 1 3 5 3 . . . . . . . . . . . . Device 13 | . 7 . 14 18 18 13 17 16 11 8 14 15 10 14 14 14 9 15 6 8 9 10 11 15 Storage 5 | . 19 3 . 5 6 6 6 6 5 5 5 5 5 5 5 5 5 5 4 4 4 4 3 3 Processor 13 | . . . . . . . 4 6 9 10 11 14 29 26 26 26 26 25 22 22 26 20 18 12 Hackware 2 | . . . . 1 5 6 1 . 10 5 5 3 . . . . . . 5 4 . 3 6 3 Protection 1 | . . 10 . . . 4 1 1 . . 1 4 . . . . 5 . . . . 1 . 4 Energy Gun 2 | . 12 . 10 1 . . . . . . 5 6 11 . . . . . 2 3 1 . . . Ballistic Gun 3 | . 14 28 16 4 2 . . . 1 . 2 . . 5 5 2 . . . . . . . 1 Ballistic Cannon 1 | . . . . 2 3 . 4 5 1 . . 1 . . . . . . . . . . . 1 Impact Weapon 1 | . . . . . . . . . 2 . . . . 5 5 5 5 5 3 3 . . . . Slashing Weapon 1 | . . . . 2 1 . 5 5 . . . . . . . . . . . . 4 4 2 1 Naked Turns . | . . . . . . . . . . . . . . . . . . . . . . . . . Heaviest Build 130 | 13 35 39 39 115 124 105 107 50 59 62 90 130 70 79 85 115 81 72 95 109 115 115 115 110 Greatest Support 122 | 40 40 40 46 65 52 32 44 64 52 50 50 92 92 92 92 92 80 80 122 110 112 112 112 108 Greatest Overweight (x) 26 | . 4 2 1 24 7 6 3 2 3 2 1 26 . . 1 1 1 . . 1 1 1 1 1 Average Overweight (x) . | . . . . 1 3 3 2 . . . 1 . . . . . . . . . . . . . Largest Inventory Capacity 25 | 8 15 15 15 25 25 25 25 10 15 25 20 25 20 20 20 25 20 20 20 20 20 20 20 20 Average Capacity 17 | 6 12 7 5 20 25 25 13 10 11 17 20 21 20 20 20 20 20 20 20 20 20 20 20 14 Most Carried 25 | 6 15 15 15 25 25 25 25 10 15 18 20 25 20 20 20 22 20 20 20 20 20 20 20 20 Average Carried 16 | 3 10 6 4 15 24 24 13 9 10 14 17 19 19 18 19 20 19 20 19 19 19 19 19 14 Final Capacity 25 | 8 15 15 5 25 25 25 10 10 15 20 20 20 20 20 20 20 20 20 20 20 20 20 20 5 Final Carried 25 | 6 15 15 5 24 21 25 10 9 15 16 20 20 19 20 20 20 20 20 20 20 20 20 20 5 Scrap Engine Consumption 159 | . . . 31 33 43 6 13 8 22 3 . . . . . . . . . . . . . . Constructs Created 19 | . . . 2 4 4 1 . 3 2 3 . . . . . . . . . . . . . . Constructs Modified 42 | . . . 3 12 18 1 5 . 1 2 . . . . . . . . . . . . . . Class Distribution -------------------- 18% | Mutant 16% | Scavenger-Ninja 13% | Commander-Mutant 7% | Derelict-Mutant 7% | Scavenger-Scout 6% | Scout 4% | Construct 4% | Hacker-Mutant 4% | Scavenger-Mutant Dominant Class ---------------- Mutant | -10/Materials Subdweller-Mutant | -10/Subcaves Construct | -8/Recycling Mutant | -6/Factory Mutant | -6/Extension Commander-Mutant | -6/Cetus Commander-Mutant | -6/Archives Commander-Mutant | -6/Hub_04(d) Hacker-Mutant | -5/Factory Mutant | -5/Upper Caves Derelict-Mutant | -5/Upper Caves Derelict-Mutant | -5/Warlord Scavenger-Scout | -4/Proximity Caves Scavenger-Ninja | -4/Factory Scavenger-Ninja | -4/Upper Caves Scavenger-Ninja | -4/Upper Caves Scavenger-Scout | -4/Zhirov Scavenger-Ninja | -3/Proximity Caves Scavenger-Ninja | -3/Research Assassin | -3/Quarantine Scout | -2/Research Gladiator | -2/Testing Hacker-Ninja | -1/Access Scavenger-Gunner | -1/Command Resources | -11 -10 -10 -8 -6 -6 -6 -6 -6 -5 -5 -5 -5 -4 -4 -4 -4 -4 -3 -3 -3 -2 -2 -1 -1 ----------- Run | Yrd Mat Sub Rec Fac Ext Cet Arc Hub Fac Upp Upp War Pro Fac Upp Upp Zhi Pro Res Qua Res Tes Acc Com Matter Collected 9908 | 192 438 312 97 842 543 80 192 92 546 689 89 730 56 . 319 171 . 154 199 353 838 355 474 2147 Remotely 673 | . . . . . . . . . . 146 . 527 . . . . . . . . . . . . Salvage Created 8577 | . 491 292 600 951 454 . 300 175 822 507 21 317 24 . 63 106 . . 78 353 227 210 330 2256 Parts 331 | . 34 17 21 29 24 . 8 6 26 14 1 15 6 . . 2 . . 1 7 11 6 9 94 Haulers Intercepted 1 | . . . . . . . . . . . . . . . . . . . . . 1 . . . Recyclers Shooed 5 | . . . 3 . . . . . 1 . . . . . . . . . . 1 . . . . Parts Field Recycled . | . . . . . . . . . . . . . . . . . . . . . . . . . Retrieved Matter . | . . . . . . . . . . . . . . . . . . . . . . . . . Parts Self-Destructed 26 | . . 5 . . . . . . . 3 1 . 15 . . 2 . . . . . . . . Prevented 7 | . . . . . . . . . . 7 . . . . . . . . . . . . . . Kills | -11 -10 -10 -8 -6 -6 -6 -6 -6 -5 -5 -5 -5 -4 -4 -4 -4 -4 -3 -3 -3 -2 -2 -1 -1 ------- Run | Yrd Mat Sub Rec Fac Ext Cet Arc Hub Fac Upp Upp War Pro Fac Upp Upp Zhi Pro Res Qua Res Tes Acc Com Combat Hostiles Destroyed 136 | . 15 8 3 15 7 . . 2 12 10 1 6 2 . . 2 . . . . . 1 4 48 Melee 30 | . . . . 8 1 . . 2 1 . . . . . . 1 . . . . . 1 1 15 Guns 48 | . 15 8 1 6 5 . . . 5 . 1 1 2 . . . . . . . . . 1 3 Cannons 6 | . . . . 1 1 . . . 2 . . 2 . . . . . . . . . . . . AOE 41 | . . . 1 . . . . . . 6 . 3 . . . . . . . . . . 2 29 Classes Destroyed 23 | . 3 2 2 3 . . 1 1 . . . 3 . . . . . . 1 1 1 . . 5 Worker 10 | . . . . . . . . 1 . . . . . . . . . . . 1 2 1 . 5 Builder 2 | . . . . . . . . . . . . . . . . . . . 1 1 . . . . Hauler 1 | . . . . . . . . . . . . . . . . . . . . . 1 . . . Recycler 13 | . . . 6 2 . . . . 2 . . . . . . . . . . 1 . 1 1 . Mechanic 2 | . . . . . . . . . . . . . . . . . . . . 1 . . . 1 Operator 11 | . . . . . . . 8 . . . . . . . . . . . 1 1 . . . 1 Turret 1 | . . 1 . . . . . . . . . . . . . . . . . . . . . . Watcher 11 | . 2 . . . 1 . . 1 . . . . . . . . . . 1 2 2 . 1 1 Swarmer 30 | . 6 1 . 4 . . . . 5 3 . 1 2 . . . . . . . . . . 8 Saboteur 2 | . . . . . . . . . . . . . . . . . . . . . . . . 2 Grunt 36 | . 9 . . 4 1 . . 2 1 6 . . . . . . . . . . . . . 13 Brawler 4 | . . . . 1 . . . . . . . . . . . . . . . . . . . 3 Duelist 2 | . . . . . . . . . . . . . . . . . . . . . . . . 2 Protector 3 | . . . . . . . . . . . . . . . . . . . . . . . . 3 Sentry 16 | . . . 3 2 6 . . . 2 . . . . . . 1 . . . . . . 1 1 Demolisher 1 | . . . . . . . . . . . . 1 . . . . . . . . . . . . Hunter 5 | . . . . 1 . . . . 1 1 . 1 . . . . . . . . . 1 . . Programmer 20 | . . . . 3 . . . . 3 . 1 2 . . . 1 . . . . . . 3 7 Heavy 1 | . . . . . . . . . . . . . . . . . . . . . . . . 1 Enhanced Grunt 1 | . . . . . . . . . . . . 1 . . . . . . . . . . . . Combat Programmer 2 | . . . . . . . . . . . . . . . . . . . . . . . . 2 Striker 2 | . . . . . . . . . . . . 1 . . . . . . . . . . . 1 Executioner 2 | . . . . . . . . . . . . . . . . . . . . . . . . 2 Subdweller 7 | . . 7 . . . . . . . . . . . . . . . . . . . . . . Wasp 5 | . . . . . . . . . . . . . . . . . . . . . . . . 5 Thug 1 | . . . . . . . . . . . . . . . . . . . . . . . . 1 Martyr 1 | . . . . . . . . . . . . . . . . . . . . . . . . 1 Mutant 2 | . . . . . . . . . . . . 1 . . . . . . . . . . . 1 Best Kill Streak 10 | . 4 4 4 3 2 . 2 2 3 5 1 2 2 . . 1 . . 1 3 2 1 3 10 Combat Bots Only 9 | . 4 4 2 3 2 . . 2 3 5 1 2 2 . . 1 . . . . . 1 3 9 Max Kills in Single Turn 9 | . 1 1 2 1 1 . 1 1 1 2 1 2 1 . . 1 . . 1 1 1 1 1 9 Gunslinging 1 | . . . . . . . . . . . . . . . . . . . . . . . . 1 Exploded 5 | . . . 1 . . . . . . 2 . 1 . . . . . . . . . . 1 5 Melee 1 | . . . . 1 1 . . 1 1 . . . . . . 1 . . . . . 1 1 1 Uniques/NPCs Destroyed . | . . . . . . . . . . . . . . . . . . . . . . . . . Combat | -11 -10 -10 -8 -6 -6 -6 -6 -6 -5 -5 -5 -5 -4 -4 -4 -4 -4 -3 -3 -3 -2 -2 -1 -1 -------- Run | Yrd Mat Sub Rec Fac Ext Cet Arc Hub Fac Upp Upp War Pro Fac Upp Upp Zhi Pro Res Qua Res Tes Acc Com Hostile Shots Fired 1748 | . 75 51 12 228 263 . 6 141 260 65 14 6 8 2 6 9 . . 9 . 16 63 65 449 Missed 570 | . 22 21 6 66 89 . 2 53 74 15 3 3 2 . 2 . . . 5 . 6 28 25 148 Intercepted 8 | . . . . . . . . . . . . . . . . . . . . . . . . 8 Damage Taken 24445 | . 545 533 85 1734 2290 14 114 1855 4215 987 220 124 120 44 75 192 . . 93 . 338 629 740 9498 Core 3347 | . 94 114 . 162 208 . . 137 643 188 60 45 16 . 18 21 . . 24 . 29 20 41 1527 Absorbed by Shields 912 | . . . . 571 321 14 . . . . . 6 . . . . . . . . . . . . Reduced by Siege Mode 278 | . . . . . . . . . . . . . . . . . . . . . . . . 278 Redirected to Shielding 545 | . . . . . . . . . . . . . . . . . . . . . . . . 545 Ignored by Resistances 837 | . . . . . . . . . . . . . . . . . . . . . . . 105 732 Regen/Repaired (Parts) 2913 | . . . . 290 553 89 211 100 128 18 . 34 . . . . . . . . 127 284 317 762 Core Remaining (%) 64 | 100 . . 16 . . . . 40 . . . . 4 . . . . 96 . 98 . 96 . . Volleys Fired 378 | . 40 29 17 37 22 . 17 3 55 14 9 18 2 . 24 1 . . 8 . 6 7 15 54 Largest 4 | . 2 2 2 2 2 . 1 2 2 1 1 2 2 . 1 1 . . 1 . 1 1 2 4 Hottest 300 | . 90 60 75 87 119 . 94 114 100 50 46 114 90 . 38 38 . . 45 . 120 50 75 300 Shots Fired 553 | . 80 58 26 69 43 . 17 6 71 12 8 29 4 . 24 1 . . 8 . 6 7 16 68 Gun 387 | . 80 58 18 64 26 . . . 39 1 5 21 4 . 24 1 . . 8 . 4 . 8 26 Cannon 118 | . . . . 5 17 . 17 6 32 . . 6 . . . . . . . . 2 7 5 21 Launcher 47 | . . . 8 . . . . . . 11 3 2 . . . . . . . . . . 3 20 Special 1 | . . . . . . . . . . . . . . . . . . . . . . . . 1 Kinetic 339 | . 34 58 18 64 34 . . 6 33 1 5 17 . . 24 1 . . 2 . . . 2 40 Thermal 67 | . . . . 5 9 . 3 . 33 . . . . . . . . . . . 2 7 5 3 Explosive 30 | . . . . . . . . . . 2 3 2 . . . . . . . . . . 3 20 Electromagnetic 82 | . 46 . 8 . . . 14 . 5 9 . . . . . . . . . . . . . . Entropic 34 | . . . . . . . . . . . . 10 4 . . . . . 6 . 4 . 6 4 Robot Hit Streak 23 | . 11 12 4 23 15 . 5 2 14 1 2 2 1 . 3 . . . . . . . 2 14 Robot Miss Streak 5 | . 3 5 2 4 4 . 3 2 4 . 2 3 2 . 3 . . . . . . . 1 2 Penetration Max 1 | . . . . . . . . . . . . 1 . . . . . . . . . . . . Secondary Targets 10 | . 2 2 . 1 . . . . 1 . . . 1 . . . . . . . . . 1 2 Max Gunslinging Chain 1 | . 1 1 . 1 . . . . 1 . . . 1 . . . . . . . . . 1 1 Shots Hit Robots 476 | . 51 43 16 85 40 . 23 10 50 18 2 9 2 . 10 6 . . 3 8 8 3 10 79 Core Hits 340 | . 23 21 10 57 36 . 5 5 14 12 4 19 2 . 2 1 . . 1 1 3 3 8 113 Critical Kills 5 | . . 1 . . . . . . 1 . . 2 . . . . . . . . . . 1 . Critical Parts Destroyed 19 | . . 1 . 1 . . . . 1 6 . 5 . . . 2 . . . 1 . . . 2 Critical Strikes 46 | . 1 2 . 7 . . . 2 7 6 . 7 . . . 2 . . 1 1 . 1 1 8 Burn 3 | . . . . . . . . . 3 . . . . . . . . . . . . . . . Destroy 14 | . . 2 . 1 . . . 1 2 . . 5 . . . . . . . . . . 1 2 Corrupt 2 | . 1 . . . . . . . 1 . . . . . . . . . . . . . . . Smash 10 | . . . . . . . . . 1 6 . . . . . 2 . . . 1 . . . . Sever 11 | . . . . 6 . . . 1 . . . . . . . . . . . . . . . 4 Detonate 2 | . . . . . . . . . . . . 2 . . . . . . . . . . . . Sunder 4 | . . . . . . . . . . . . . . . . . . . 1 . . 1 . 2 Melee Attacks 428 | . . . . 60 6 . 11 15 31 21 . 5 . 3 3 11 . 1 16 20 75 30 37 83 Kinetic 6 | . . . . . . . . . . . . . . . . . . . . . . . . 6 Impact 97 | . . . . . . . . . 30 18 . 4 . 3 3 7 . 1 15 16 . . . . Slashing 248 | . . . . 60 6 . 11 15 1 . . . . . . . . . . 4 60 23 27 41 Piercing 3 | . . . . . . . . . . 3 . . . . . . . . . . . . . . Entropic 74 | . . . . . . . . . . . . 1 . . . 4 . . 1 . 15 7 10 36 Sneak Attacks 32 | . . . . 4 1 . 8 2 3 . . . . . . . . . 1 6 3 2 1 1 Combat Hostiles . | . . . . . . . . . . . . . . . . . . . . . . . . . Follow-up Attacks 7 | . . . . . . . . . . . . . . . . . . . . . 1 . 1 5 Damage Inflicted 33110 | . 841 744 388 2233 1137 . 1516 455 1789 1365 193 1074 77 . 379 450 . . 195 746 879 475 1187 16987 Guns 5293 | . 832 744 262 991 494 . . . 835 20 37 352 77 . 169 . . . . . . . 77 403 Cannons 2064 | . . . . 65 386 . 535 50 271 . . 110 . . . . . . . . . . . 647 Explosions 14534 | . . . 126 . . . . . . 606 156 612 . . . . . . . . . . 536 12498 Melee 11188 | . . . . 1160 257 . 981 400 683 739 . . . . 210 450 . . 195 746 879 475 574 3439 Ramming 31 | . 9 . . 17 . . . 5 . . . . . . . . . . . . . . . . Kinetic 5264 | . 421 744 262 991 663 . . 50 732 20 37 293 . . 169 . . . . . . . 35 847 Thermal 1421 | . . . . 65 217 . 67 . 271 . . 351 . . . . . . . . . . . 450 Explosive 13737 | . . . . . . . . . . 286 156 261 . . . . . . . . . . 536 12498 Electromagnetic 1428 | . 411 . 126 . . . 468 . 103 320 . . . . . . . . . . . . . . Impact 2555 | . . . . . . . . . 683 630 . . . . 210 173 . . 113 746 . . . . Slashing 6120 | . . . . 1160 257 . 981 400 . . . . . . . . . . . . 784 191 476 1871 Piercing 109 | . . . . . . . . . . 109 . . . . . . . . . . . . . . Entropic 2445 | . . . . . . . . . . . . 169 77 . . 277 . . 82 . 95 284 140 1321 Highest Corruption 19 | . . . . 3 3 . . 13 18 17 19 19 . . . 2 . . . . . . 1 17 Average Corruption 10 | . . . . 2 2 . . 5 5 17 18 19 . . . 1 . . . . . . 1 6 Corruption Purged 19 | . . . . 5 3 . . . 1 . . . . . . 2 . . . . . . 1 7 Corruption Blocked 72 | . . . . . . . . . . . . 14 . . . . . . . . 56 . . 2 Effects 153 | . . . . 5 2 . . 2 26 53 40 4 . . . . . . . . . . . 21 Message Errors 40 | . . . . 1 . . . 1 7 13 13 2 . . . . . . . . . . . 3 Matter Fused 31 | . . . . 1 . . . . 2 14 8 1 . . . . . . . . . . . 5 Heat Flow Errors 16 | . . . . . 1 . . . 3 6 2 1 . . . . . . . . . . . 3 Energy Discharges 27 | . . . . 1 1 . . . 3 8 9 . . . . . . . . . . . . 5 Parts Rejected 1 | . . . . . . . . . 1 . . . . . . . . . . . . . . . Parts Fused 1 | . . . . . . . . . . 1 . . . . . . . . . . . . . . Data Loss (minor) 18 | . . . . 1 . . . . 5 6 4 . . . . . . . . . . . . 2 Data Loss (major) 4 | . . . . . . . . . 1 1 1 . . . . . . . . . . . . 1 Misfires 1 | . . . . . . . . . . . 1 . . . . . . . . . . . . . Alerts 3 | . . . . . . . . . 1 1 . . . . . . . . . . . . . 1 Misdirections 3 | . . . . . . . . 1 1 1 . . . . . . . . . . . . . . Weapon Failures 8 | . . . . 1 . . . . 2 2 2 . . . . . . . . . . . . 1 Overload Shots . | . . . . . . . . . . . . . . . . . . . . . . . . . Overflow Damage 3457 | . . . . 53 50 . 710 58 190 316 . . . . 128 169 . . 49 335 357 . 167 875 Projectiles 126 | . . . . . . . 72 . . . . . . . 24 . . . . . . . . 30 Explosions 559 | . . . . . . . . . . 36 . . . . . . . . . . . . 10 513 Melee 2772 | . . . . 53 50 . 638 58 190 280 . . . . 104 169 . . 49 335 357 . 157 332 Knockbacks 20 | . . . . . 7 . . . 2 5 . . . . . 1 . . 1 4 . . . . Impact 13 | . . . . . . . . . 2 5 . . . . . 1 . . 1 4 . . . . Kinetic 7 | . . . . . 7 . . . . . . . . . . . . . . . . . . . Secondary . | . . . . . . . . . . . . . . . . . . . . . . . . . Self-Inflicted Damage 647 | . . . . 8 . . . 2 . 63 . . . . . . . . . . . . . 574 Shots 8 | . . . . . . . . . . 2 . . . . . . . . . . . . . 6 Rammed 7 | . 2 . . 3 . . . 2 . . . . . . . . . . . . . . . . Targets Rammed 7 | . 2 . . 3 . . . 2 . . . . . . . . . . . . . . . . Kicked . | . . . . . . . . . . . . . . . . . . . . . . . . . Crushed . | . . . . . . . . . . . . . . . . . . . . . . . . . Highest Temperature 486 | . . . 36 112 367 . 11 84 301 267 259 282 84 91 204 209 165 1 176 . 346 174 214 486 Average Temperature 73 | . . . 14 22 70 . 6 40 131 97 121 148 47 34 61 57 95 1 46 . 87 72 66 93 Received Heat Transfer 3301 | . 225 96 36 389 730 . 27 261 709 276 . . . 9 12 18 . . . . 36 . 54 423 Effects 9 | . . . . . 1 . . . 1 . . 1 . . . . . . . . 1 . . 5 Shutdowns 1 | . . . . . . . . . . . . . . . . . . . . . . . . 1 Energy Bleed 6 | . . . . . 1 . . . 1 . . 1 . . . . . . . . . . . 3 Matter Decay 2 | . . . . . . . . . . . . . . . . . . . . . 1 . . 1 Siege Activations 1 | . . . . . . . . . . . . . . . . . . . . . . . . 1 Total Turns 30 | . . . . . . . . . . . . . . . . . . . . . . . . 30 Longest Duration 30 | . . . . . . . . . . . . . . . . . . . . . . . . 30 Robots Corrupted 5 | . 1 . 1 . . . 1 . 1 1 . . . . . . . . . . . . . . Combat Hostiles 3 | . . . 1 . . . . . 1 1 . . . . . . . . . . . . . . Parts Fried 40 | . 5 . 2 . . . 8 . 9 5 . . . . . . . . 5 6 . . . . Impact Corruptions 37 | . . . . . . . . . 8 8 . . . . 4 4 . . 3 10 . . . . Robots Melted 1 | . . . . . . . . . 1 . . . . . . . . . . . . . . . Combat Hostiles 1 | . . . . . . . . . 1 . . . . . . . . . . . . . . . Parts Melted 8 | . . . . 2 1 . . . 5 . . . . . . . . . . . . . . . Heat Transferred 2228 | . . . . 350 852 . 148 . 592 . . 286 . . . . . . . . . . . . Parts Sabotaged . | . . . . . . . . . . . . . . . . . . . . . . . . . Parts Stolen . | . . . . . . . . . . . . . . . . . . . . . . . . . Parts Stripped 15 | . . . . . . . . . . . . . . . . . . . . . . . . 15 Power Chain Reactions . | . . . . . . . . . . . . . . . . . . . . . . . . . Alert | -11 -10 -10 -8 -6 -6 -6 -6 -6 -5 -5 -5 -5 -4 -4 -4 -4 -4 -3 -3 -3 -2 -2 -1 -1 ------- Run | Yrd Mat Sub Rec Fac Ext Cet Arc Hub Fac Upp Upp War Pro Fac Upp Upp Zhi Pro Res Qua Res Tes Acc Com Peak Influence 2735 | . 299 . 266 465 339 109 308 1108 744 . . . . 46 . . . . 314 247 111 390 520 2735 Initial 525 | . . . 147 350 146 67 43 . 525 . . . . . . . . . . 50 73 45 22 332 Average 312 | . 154 . 157 265 164 98 59 525 365 . . . . 26 . . . . 148 161 36 147 219 1570 Maximum Alert Level 5 | . 1 . 1 2 1 . 1 4 3 . . . . . . . . . 1 1 . 1 2 5 Low Security (%) 59 | 100 72 . 59 37 52 100 85 30 29 . . . . 100 . . . . 74 58 100 76 47 . Level 1 23 | . 27 . 40 52 47 . 14 11 31 . . . . . . . . . 25 41 . 23 38 3 Level 2 5 | . . . . 10 . . . 13 32 . . . . . . . . . . . . . 13 8 Level 3 2 | . . . . . . . . 44 6 . . . . . . . . . . . . . . 8 Level 4 3 | . . . . . . . . . . . . . . . . . . . . . . . . 35 Level 5 . | . . . . . . . . . . . . . . . . . . . . . . . . . High Security 4 | . . . . . . . . . . . . . . . . . . . . . . . . 45 Max Security . | . . . . . . . . . . . . . . . . . . . . . . . . . Squads Dispatched 73 | . 5 . . 5 . . . 12 6 . . . . 1 . . . . . . . 7 3 34 Investigation 7 | . 1 . . 1 . . . 1 1 . . . . . . . . . . . . 1 . 2 Extermination 12 | . . . . 2 . . . 2 2 . . . . . . . . . . . . 1 2 3 Reinforcement 18 | . 4 . . 2 . . . 6 1 . . . . 1 . . . . . . . 1 1 2 Assault 30 | . . . . . . . . 3 . . . . . . . . . . . . . . . 27 Garrison 6 | . . . . . . . . . 2 . . . . . . . . . . . . 4 . . Intercept . | . . . . . . . . . . . . . . . . . . . . . . . . . Searches Triggered 1 | . . . . 1 . . . . . . . . . . . . . . . . . . . . Construction Impeded 1 | . . . . . . . . 1 . . . . . . . . . . . . . . . . Haulers Reinforced . | . . . . . . . . . . . . . . . . . . . . . . . . . Active Scanning Responses . | . . . . . . . . . . . . . . . . . . . . . . . . . Cargo Convoy Interrupts . | . . . . . . . . . . . . . . . . . . . . . . . . . Stealth | -11 -10 -10 -8 -6 -6 -6 -6 -6 -5 -5 -5 -5 -4 -4 -4 -4 -4 -3 -3 -3 -2 -2 -1 -1 --------- Run | Yrd Mat Sub Rec Fac Ext Cet Arc Hub Fac Upp Upp War Pro Fac Upp Upp Zhi Pro Res Qua Res Tes Acc Com Distress Signals 12 | . 1 . . . 3 1 . 2 2 . . . . . . . . . . . 1 . . 2 Communications Jammed 58 | . . . . . . . . . 5 . . . . . . . . . 12 . . 38 3 . Distress Signals 29 | . . . . . . . . . 5 . . . . . . . . . 12 . . 9 3 . Times Spotted 514 | . 25 34 3 25 25 5 17 32 36 15 1 23 6 2 11 2 . . 16 3 19 16 15 183 Peak Tracking Total 28 | . 5 6 2 5 5 5 3 11 7 6 1 9 3 1 3 1 . . 9 1 4 4 10 28 Tactical Retreats 71 | . 1 2 . 2 2 . . 1 6 5 . 4 2 1 5 . . . 3 . 4 5 3 25 Traps | -11 -10 -10 -8 -6 -6 -6 -6 -6 -5 -5 -5 -5 -4 -4 -4 -4 -4 -3 -3 -3 -2 -2 -1 -1 ------- Run | Yrd Mat Sub Rec Fac Ext Cet Arc Hub Fac Upp Upp War Pro Fac Upp Upp Zhi Pro Res Qua Res Tes Acc Com Traps Triggered 10 | . 1 . . . 2 . . . 2 . . . . . . . . . 1 2 . . . 2 Indirectly . | . . . . . . . . . . . . . . . . . . . . . . . . . Trap Hack Attempts . | . . . . . . . . . . . . . . . . . . . . . . . . . Triggered . | . . . . . . . . . . . . . . . . . . . . . . . . . Disarmed . | . . . . . . . . . . . . . . . . . . . . . . . . . Reprogrammed . | . . . . . . . . . . . . . . . . . . . . . . . . . Reused . | . . . . . . . . . . . . . . . . . . . . . . . . . Traps Extracted . | . . . . . . . . . . . . . . . . . . . . . . . . . Installed . | . . . . . . . . . . . . . . . . . . . . . . . . . Triggered 27 | . . . . . . . . . . . . 27 . . . . . . . . . . . . Machines | -11 -10 -10 -8 -6 -6 -6 -6 -6 -5 -5 -5 -5 -4 -4 -4 -4 -4 -3 -3 -3 -2 -2 -1 -1 ---------- Run | Yrd Mat Sub Rec Fac Ext Cet Arc Hub Fac Upp Upp War Pro Fac Upp Upp Zhi Pro Res Qua Res Tes Acc Com Machines Disabled 30 | . . . . 1 . 1 3 1 3 1 . . . . . 1 . . 2 4 . 5 1 7 Max in Single Turn 2 | . . . . 1 . . 1 1 1 1 . . . . . 1 . . 1 1 . 1 1 2 Garrison Access 2 | . . . . . . . . 2 . . . . . . . . . . . . . . . . Phase Generator 1 | . . . . . . . . . . . . . . . . . . . . . . . . 1 Network Hub 4 | . . . . . . . . 4 . . . . . . . . . . . . . . . . Machines Repaired . | . . . . . . . . . . . . . . . . . . . . . . . . . Machines Dismantled . | . . . . . . . . . . . . . . . . . . . . . . . . . Machines Sabotaged 1 | . . . . . . . . 1 . . . . . . . . . . . . . . . . Overloaded Fab Kills . | . . . . . . . . . . . . . . . . . . . . . . . . . Hacking | -11 -10 -10 -8 -6 -6 -6 -6 -6 -5 -5 -5 -5 -4 -4 -4 -4 -4 -3 -3 -3 -2 -2 -1 -1 --------- Run | Yrd Mat Sub Rec Fac Ext Cet Arc Hub Fac Upp Upp War Pro Fac Upp Upp Zhi Pro Res Qua Res Tes Acc Com Machines Accessed 96 | . 3 . 7 3 12 3 1 2 10 . 1 6 . 1 . . 8 . 6 7 3 9 7 7 Terminals 68 | . 2 . 4 3 12 3 . 2 7 . . . . 1 . . . . 5 6 2 7 7 7 Fabricators 2 | . . . . . . . . . 1 . . . . . . . . . . . 1 . . . Repair Stations 1 | . . . . . . . . . 1 . . . . . . . . . . . . . . . Recycling Units 5 | . 1 . 3 . . . . . 1 . . . . . . . . . . . . . . . Scanalyzers 4 | . . . . . . . . . . . . . . . . . . . 1 1 . 2 . . Garrison Access . | . . . . . . . . . . . . . . . . . . . . . . . . . Total Hacks 391 | . 7 . 18 7 26 12 1 3 72 . 1 20 . 4 . . 47 . 28 38 10 44 29 24 Successful 199 | . 2 . 7 1 16 6 1 2 20 . 1 20 . 1 . . 47 . 14 17 1 25 13 5 Failed 192 | . 5 . 11 6 10 6 . 1 52 . . . . 3 . . . . 14 21 9 19 16 19 Catastrophic 53 | . . . 3 3 . 2 . . 15 . . . . 1 . . . . 3 6 3 6 4 7 Database Lockouts . | . . . . . . . . . . . . . . . . . . . . . . . . . Manual 145 | . 5 . 12 3 8 1 . 2 40 . . . . 2 . 1 . . 10 13 2 18 12 16 Terminals 273 | . 6 . 10 7 26 12 . 3 58 . . . . 4 . . . . 27 28 9 30 29 24 Fabricators 4 | . . . . . . . . . 3 . . . . . . . . . . . 1 . . . Repair Stations 5 | . . . . . . . . . 5 . . . . . . . . . . . . . . . Recycling Units 15 | . 1 . 8 . . . . . 6 . . . . . . . . . . . . . . . Scanalyzers 25 | . . . . . . . . . . . . . . . . . . . 1 10 . 14 . . Garrison Access . | . . . . . . . . . . . . . . . . . . . . . . . . . Terminal Hacks 149 | . 1 . 2 1 13 6 1 1 16 . 1 20 . 1 . . 47 . 10 7 1 9 10 2 Record 54 | . . . . . . 5 1 . . . . 13 . . . . 35 . . . . . . . Part Schematic 9 | . . . 1 . 1 . . . 3 . . . . . . . 4 . . . . . . . Robot Analysis 4 | . . . . . . . . . . . . . . . . . 4 . . . . . . . Prototype ID Bank 15 | . . . . . 1 . . . 1 . . 6 . . . . 4 . 2 1 . . . . Open Door 13 | . . . . . 7 1 . . . . 1 1 . . . . . . . . . . 3 . Level Access Points 3 | . . . . . . . . . 1 . . . . . . . . . . 1 . 1 . . Branch Access Points 5 | . . . . 1 . . . . 1 . . . . 1 . . . . 1 . . . 1 . Machine Index 2 | . . . . . . . . . . . . . . . . . . . . . . 1 1 . Terminal Index 2 | . . . . . . . . . 1 . . . . . . . . . 1 . . . . . Alert Level 6 | . . . . . 1 . . . 3 . . . . . . . . . 1 . . 1 . . Unreport Threat 10 | . . . . . 2 . . . 3 . . . . . . . . . 2 . 1 2 . . Locate Traps 3 | . . . . . . . . . 1 . . . . . . . . . . 1 . . 1 . Dispatch Records 1 | . . . . . . . . . . . . . . . . . . . . . . . 1 . Recall Investigation 1 | . . . . . . . . . . . . . . . . . . . . . . 1 . . Recall Extermination 1 | . . . . . . . . . . . . . . . . . . . . . . . 1 . Registered Components 4 | . . . . . . . . . 1 . . . . . . . . . 1 1 . . 1 . Registered Prototypes 1 | . . . . . . . . . . . . . . . . . . . . 1 . . . . Zone Layout 13 | . 1 . 1 . 1 . . 1 1 . . . . . . . . . 2 2 . 3 1 . Disengage Seal 2 | . . . . . . . . . . . . . . . . . . . . . . . . 2 Fabricator Hacks . | . . . . . . . . . . . . . . . . . . . . . . . . . Repair Station Hacks 1 | . . . . . . . . . 1 . . . . . . . . . . . . . . . Refit 1 | . . . . . . . . . 1 . . . . . . . . . . . . . . . Recycling Unit Hacks 3 | . . . 2 . . . . . 1 . . . . . . . . . . . . . . . Retrieve Components 3 | . . . 2 . . . . . 1 . . . . . . . . . . . . . . . Scanalyzer 15 | . . . . . . . . . . . . . . . . . . . . 5 . 10 . . Insert Component 6 | . . . . . . . . . . . . . . . . . . . . 3 . 3 . . Analyze 9 | . . . . . . . . . . . . . . . . . . . . 2 . 7 . . Garrison Access Hacks . | . . . . . . . . . . . . . . . . . . . . . . . . . Unauthorized Hacks 31 | . 1 . 3 . 3 . . 1 2 . . . . . . . . . 4 5 . 6 3 3 Terminals 26 | . . . . . 3 . . 1 2 . . . . . . . . . 4 5 . 5 3 3 Track 4 | . . . . . . . . . . . . . . . . . . . 1 1 . 2 . . Assimilate 1 | . . . . . . . . . . . . . . . . . . . . 1 . . . . Botnet 17 | . . . . . 3 . . . 2 . . . . . . . . . 3 3 . 1 2 3 Disrupt 3 | . . . . . . . . . . . . . . . . . . . . . . 2 1 . Sabotage 1 | . . . . . . . . 1 . . . . . . . . . . . . . . . . Fabricators . | . . . . . . . . . . . . . . . . . . . . . . . . . Repair Stations . | . . . . . . . . . . . . . . . . . . . . . . . . . Recycling Units 4 | . 1 . 3 . . . . . . . . . . . . . . . . . . . . . Tunnel 4 | . 1 . 3 . . . . . . . . . . . . . . . . . . . . . Scanalyzers 1 | . . . . . . . . . . . . . . . . . . . . . . 1 . . Researchers 1 | . . . . . . . . . . . . . . . . . . . . . . 1 . . Garrison Access . | . . . . . . . . . . . . . . . . . . . . . . . . . Data Cores Recovered 3 | . . . . . . . . . . . . . . . . . . . 1 1 . . . 1 Used . | . . . . . . . . . . . . . . . . . . . . . . . . . Hacking Detections 65 | . 2 . 5 3 6 3 . . 10 . . . . 1 . . . . 6 6 3 9 5 6 Full Trace Events 8 | . . . 4 1 . . . . 1 . . . . . . . . . . . . 1 . 1 Feedback Events 1 | . . . . . . . . . 1 . . . . . . . . . . . . . . . Corruption 1 | . . . . . . . . . 1 . . . . . . . . . . . . . . . Feedback Blocked . | . . . . . . . . . . . . . . . . . . . . . . . . . Robot Schematics Acquired . | . . . . . . . . . . . . . . . . . . . . . . . . . Robots Built . | . . . . . . . . . . . . . . . . . . . . . . . . . Authchips . | . . . . . . . . . . . . . . . . . . . . . . . . . Time . | . . . . . . . . . . . . . . . . . . . . . . . . . Total Robot Build Rating . | . . . . . . . . . . . . . . . . . . . . . . . . . Part Schematics Acquired 13 | . . . 1 . 1 . . . 3 . . . . . . . 4 . . 2 . 2 . . Parts Built . | . . . . . . . . . . . . . . . . . . . . . . . . . Authchips . | . . . . . . . . . . . . . . . . . . . . . . . . . Time . | . . . . . . . . . . . . . . . . . . . . . . . . . Total Part Build Rating . | . . . . . . . . . . . . . . . . . . . . . . . . . Parts Repaired . | . . . . . . . . . . . . . . . . . . . . . . . . . Time . | . . . . . . . . . . . . . . . . . . . . . . . . . Parts Recycled . | . . . . . . . . . . . . . . . . . . . . . . . . . Recycled Matter . | . . . . . . . . . . . . . . . . . . . . . . . . . Retrieved Matter . | . . . . . . . . . . . . . . . . . . . . . . . . . Retrieved Components 10 | . . . 10 . . . . . . . . . . . . . . . . . . . . . Parts Scanalyzed 5 | . . . . . . . . . . . . . . . . . . . . 3 . 2 . . Part Schematics Acquired 4 | . . . . . . . . . . . . . . . . . . . . 2 . 2 . . Parts Damaged . | . . . . . . . . . . . . . . . . . . . . . . . . . Bothacking | -11 -10 -10 -8 -6 -6 -6 -6 -6 -5 -5 -5 -5 -4 -4 -4 -4 -4 -3 -3 -3 -2 -2 -1 -1 ------------ Run | Yrd Mat Sub Rec Fac Ext Cet Arc Hub Fac Upp Upp War Pro Fac Upp Upp Zhi Pro Res Qua Res Tes Acc Com Used RIF Installer . | . . . . . . . . . . . . . . . . . . . . . . . . . Robots Hacked 1 | . . . . . . . . . . . . . . . . . . . . . . . . 1 Non-combat . | . . . . . . . . . . . . . . . . . . . . . . . . . Combat . | . . . . . . . . . . . . . . . . . . . . . . . . . Robot Hacks Applied . | . . . . . . . . . . . . . . . . . . . . . . . . . Manual 1 | . . . . . . . . . . . . . . . . . . . . . . . . 1 Relay Couplers Released 1 | . . . . . . . . 1 . . . . . . . . . . . . . . . . Machine Destruction 1 | . . . . . . . . 1 . . . . . . . . . . . . . . . . Fabnet Peak Effective % . | . . . . . . . . . . . . . . . . . . . . . . . . . Robots Rewired 10 | . . . . . 10 . . . . . . . . . . . . . . . . . . . Allies Hacked . | . . . . . . . . . . . . . . . . . . . . . . . . . Hacks Repelled . | . . . . . . . . . . . . . . . . . . . . . . . . . Allies | -11 -10 -10 -8 -6 -6 -6 -6 -6 -5 -5 -5 -5 -4 -4 -4 -4 -4 -3 -3 -3 -2 -2 -1 -1 -------- Run | Yrd Mat Sub Rec Fac Ext Cet Arc Hub Fac Upp Upp War Pro Fac Upp Upp Zhi Pro Res Qua Res Tes Acc Com Total Allies 27 | . . . . . 22 5 . . . . . . . . . . . . . . . . . . Largest Group 16 | . . . . . 16 16 14 10 . . . . . . . . . . . . . . . . Highest-Rated Group 841 | . . . . . 575 841 841 610 . . . . . . . . . . . . . . . . Highest-Rated Ally 159 | . . . . . 159 152 152 96 . . . . . . . . . . . . . . . . Total Orders 7 | . . . . . . . . 5 . . . . . . . . . . . . 2 . . . STAY 2 | . . . . . . . . 2 . . . . . . . . . . . . . . . . EXPLORE 4 | . . . . . . . . 2 . . . . . . . . . . . . 2 . . . RETURN 1 | . . . . . . . . 1 . . . . . . . . . . . . . . . . Ally Attacks 248 | . . . . . 83 42 34 89 . . . . . . . . . . . . . . . . Total Damage 7292 | . . . . . 1562 975 1256 3499 . . . . . . . . . . . . . . . . Kills 48 | . . . . . 15 5 7 21 . . . . . . . . . . . . . . . . Allies Corrupted . | . . . . . . . . . . . . . . . . . . . . . . . . . Allies Melted 6 | . . . . . . . . . . . . 1 . . . . . . . . 5 . . . Intel | -11 -10 -10 -8 -6 -6 -6 -6 -6 -5 -5 -5 -5 -4 -4 -4 -4 -4 -3 -3 -3 -2 -2 -1 -1 ------- Run | Yrd Mat Sub Rec Fac Ext Cet Arc Hub Fac Upp Upp War Pro Fac Upp Upp Zhi Pro Res Qua Res Tes Acc Com Robot Analysis Total 4 | . . . . . . . . . . . . . . . . . 4 . . . . . . . Derelict Logs Recovered 7 | . . 1 . . . . . . . . 2 . 1 . 1 2 . . . . . . . . Drone Launches 5 | . . . . . . . . 3 . . . . . . . . . . . . 2 . . . Drone Recoveries 1 | . . . . . . . . 1 . . . . . . . . . . . . . . . . Exploration | -11 -10 -10 -8 -6 -6 -6 -6 -6 -5 -5 -5 -5 -4 -4 -4 -4 -4 -3 -3 -3 -2 -2 -1 -1 ------------- Run | Yrd Mat Sub Rec Fac Ext Cet Arc Hub Fac Upp Upp War Pro Fac Upp Upp Zhi Pro Res Qua Res Tes Acc Com Turns Passed 23724 | 85 1146 675 804 1177 1302 339 2513 384 1304 1248 801 1777 726 180 2021 1083 387 519 470 463 1599 500 693 1528 Spaces Moved 17257 | 46 589 431 539 575 547 149 462 394 990 573 340 912 491 266 1391 671 207 876 514 394 2354 625 826 2095 Core 36 | 2 4 . . 1 . . . . 1 . . 2 . . . . . . . . . . . 26 Treads 1977 | 44 561 18 . . . . . . 6 521 340 487 . . . . . . . . . . . . Legs 520 | . . 255 265 . . . . . . . . . . . . . . . . . . . . . Wheels 2273 | . 24 158 274 574 547 149 298 5 244 . . . . . . . . . . . . . . . Hover 12451 | . . . . . . . 164 389 739 52 . 423 491 266 1391 671 207 876 514 394 2354 625 826 2069 Flight . | . . . . . . . . . . . . . . . . . . . . . . . . . Fastest Speed 27 | 50 100 110 105 111 129 145 66 53 58 126 225 32 32 32 32 32 43 43 27 41 43 49 43 37 Average Speed 81 | 155 158 118 120 146 148 155 142 70 89 187 225 159 42 42 43 46 76 43 38 47 48 50 47 42 Slowest Speed 1350 | 160 250 260 190 1250 205 190 206 161 250 225 225 1350 43 43 111 111 111 43 50 104 124 122 126 137 Overloaded Moves 267 | . . . . . . . . . . . . 96 22 24 19 6 . . 100 . . . . . Propulsion Burnouts . | . . . . . . . . . . . . . . . . . . . . . . . . . Robots Hopped . | . . . . . . . . . . . . . . . . . . . . . . . . . Cave-ins Triggered 1 | . . . . . . . . . . . . . . . . . . . . . . . . 1 Exploration Rate (%) 58 | 3 86 16 95 16 75 71 96 62 27 72 51 86 79 7 95 73 64 94 14 43 72 82 27 50 Regions Visited 24 Branch Regions 17 Pre-discovered Areas 9 | . 1 . 3 . . . . . . . . . 1 . . 1 3 . . . . . . . Known Exits Taken 16 | . . . . 1 . . . . 1 1 1 1 1 1 1 1 1 1 1 1 1 1 1 . Unknown Exits Taken 8 | 1 1 1 1 . 1 1 1 1 . . . . . . . . . . . . . . . . Scrap Searched 13 | . . . . . . . . . . 1 2 . 1 . 3 3 . 3 . . . . . . Spaces Dug 395 | . . . . 4 . . . 6 16 1 . 6 . 2 3 4 . 1 70 8 57 21 38 158 Terrain Destroyed 802 | . . . 2 4 . . . 8 29 34 42 57 12 2 26 4 . 1 71 8 57 22 107 316 Melee 162 | . . . . 4 . . . 6 13 1 . 1 . 2 1 3 . 1 12 8 49 17 24 20 Projectile 179 | . . . 2 . . . . 2 16 . . 22 12 . 25 1 . . 15 . 8 5 19 52 AOE 461 | . . . . . . . . . . 33 42 34 . . . . . . 44 . . . 64 244 Terrain Rammed . | . . . . . . . . . . . . . . . . . . . . . . . . . Walls Destroyed . | . . . . . . . . . . . . . . . . . . . . . . . . . Machines Disabled . | . . . . . . . . . . . . . . . . . . . . . . . . . Actions | -11 -10 -10 -8 -6 -6 -6 -6 -6 -5 -5 -5 -5 -4 -4 -4 -4 -4 -3 -3 -3 -2 -2 -1 -1 --------- Run | Yrd Mat Sub Rec Fac Ext Cet Arc Hub Fac Upp Upp War Pro Fac Upp Upp Zhi Pro Res Qua Res Tes Acc Com Total 25740 | 57 721 547 668 782 1001 258 2287 470 1280 701 367 1198 1003 329 2774 1417 438 1014 739 625 2697 746 1046 2575 Wait 6320 | . 38 27 95 42 263 100 1753 43 103 49 . 132 496 42 1335 702 205 130 154 162 184 37 105 123 Move 17234 | 45 588 430 538 574 546 148 461 394 989 572 339 911 490 265 1390 670 206 875 513 393 2353 624 825 2095 Hop . | . . . . . . . . . . . . . . . . . . . . . . . . . Pick Up 316 | 6 20 16 4 20 29 5 13 2 18 7 7 35 3 6 5 9 10 . 5 7 22 11 12 44 Fast Attach 143 | 6 7 8 1 6 7 1 1 3 18 3 6 8 2 . . . 2 2 3 9 13 2 5 30 Attach 150 | . 3 3 . 15 16 1 9 1 13 16 2 13 1 4 1 1 . . 5 . 3 . 8 35 Detach 72 | . . 1 1 8 9 1 3 . 8 13 . 6 . 2 . . . . 4 1 1 . 3 11 Swap 303 | . 9 1 2 7 5 . 6 3 26 4 . 27 4 3 12 14 4 4 25 19 21 28 30 49 Drop 361 | . 14 26 9 10 37 2 13 5 19 2 4 44 5 4 4 9 11 2 6 14 34 12 13 62 Fire 378 | . 40 29 17 37 22 . 17 3 55 14 9 18 2 . 24 1 . . 8 . 6 7 15 54 Melee 389 | . . . . 60 6 . 11 15 31 21 . 4 . 3 3 11 . 1 16 20 60 25 30 72 Ram 4 | . . . . 3 . . . 1 . . . . . . . . . . . . . . . . Kick . | . . . . . . . . . . . . . . . . . . . . . . . . . Crush 2 | . 2 . . . . . . . . . . . . . . . . . . . . . . . Escape Stasis 16 | . . . . . 16 . . . . . . . . . . . . . . . . . . . Rewire 46 | . . . 1 . 45 . . . . . . . . . . . . . . . . . . . Trap . | . . . . . . . . . . . . . . . . . . . . . . . . . Miscellaneous 6 | . . 6 . . . . . . . . . . . . . . . . . . . . . . Route ------- -11/Scrapyard -10/Materials (discovered 4 exits: [*Mat x2] / [*Min] / [*Sub]) -10/Subcaves -8/Recycling -6/Factory (discovered 4 exits: Low x2 / *Ext x2) -6/Extension (discovered 2 exits: *Fac / *Cet) -6/Cetus -6/Archives (discovered 3 exits: *Fac / *Hub x2) -6/Hub_04(d) (discovered 3 exits: *Fac x3) -5/Factory (discovered 6 exits: *Fac x4 / *Upp x2) -5/Upper Caves -5/Upper Caves -5/Warlord -4/Proximity Caves -4/Factory (discovered 2 exits: *Upp x2) -4/Upper Caves -4/Upper Caves (discovered 2 exits: *Res / *Zhi) -4/Zhirov -3/Proximity Caves -3/Research (discovered 4 exits: Res / Arm / *Qua x2) -3/Quarantine -2/Research (discovered 3 exits: *Acc x2 / *Tes) -2/Testing -1/Access -1/Command History --------- Turn | Location | Event 18 | -11/Scrapyard | Discovered new exit (range 15) 86 | -11/Scrapyard | Entered Materials 310 | -10/Materials | Build established: Mutant 444 | -10/Materials | Discovered new exit (range 16) 660 | -10/Materials | Lost 3 parts (1p2w) 813 | -10/Materials | Discovered new exit (range 7) 925 | -10/Materials | Discovered new exit (range 11) 1219 | -10/Materials | Discovered new exit (range 7) 1232 | -10/Materials | Entered Subcaves 1297 | -10/Subcaves | Learned Materials stockpile data 1337 | -10/Subcaves | Discovered new exit (range 15) 1400 | -10/Subcaves | A swath of the cavern ceiling suddenly collapsed 1451 | -10/Subcaves | Ambushed by swarm of Subdwellers 1461 | -10/Subcaves | Ambushed by Subdwellers from Twisted Machinery 1463 | -10/Subcaves | Core integrity fell below 50% 1501 | -10/Subcaves | Lost 4 allies 1568 | -10/Subcaves | Build established: Subdweller-Mutant 1652 | -10/Subcaves | Core integrity fell below 20% 1907 | -10/Subcaves | Entered Recycling 1912 | -8/Recycling | Found Scrap Engine 2302 | -8/Recycling | Build established: Construct 2693 | -8/Recycling | Discovered new exit (range 13) 2711 | -8/Recycling | Entered Factory 2711 | -6/Factory | Evolved 8 slots: Propulsion x4, Utility x4 3061 | -6/Factory | Search patrols dispatched 3334 | -6/Factory | Lost 3 parts (1p2n) 3450 | -6/Factory | Lost 3 parts (1n1u1w) 3525 | -6/Factory | Identified exit to Lower Caves 3525 | -6/Factory | Identified exit to Extension 3747 | -6/Factory | Build established: Mutant 3888 | -6/Factory | Entered Extension 3931 | -6/Extension | Rescued a captive Derelict 3932 | -6/Extension | Rescued a captive Derelict 3964 | -6/Extension | Rescued a captive Derelict 3965 | -6/Extension | Rescued a captive Derelict 4001 | -6/Extension | Rescued a captive Derelict 4002 | -6/Extension | Rescued a captive Derelict 4274 | -6/Extension | Spotted B-75 Beast 4297 | -6/Extension | Spotted B-75 Beast 4354 | -6/Extension | Lost 6 allies 4371 | -6/Extension | Rescued a captive Derelict 4374 | -6/Extension | Lost 8 parts (1p4n2u1w) 4400 | -6/Extension | Rescued A7 4744 | -6/Extension | Rescued a captive Derelict 4746 | -6/Extension | Rescued a captive Derelict 4763 | -6/Extension | Rescued a captive Derelict 4763 | -6/Extension | Rescued a captive Derelict 4914 | -6/Extension | Discovered new exit (range 10) 4915 | -6/Extension | Discovered new exit (range 6) 5040 | -6/Extension | Build established: Commander-Construct 5190 | -6/Extension | Entered Cetus 5190 | -6/Cetus | Accompanied by 16 allies (A7) 5195 | -6/Cetus | Acquired a Cetus Manufacturing Module code from A7 5215 | -6/Cetus | Spotted Cetus Guard 5215 | -6/Cetus | Spotted Cetus Guard 5217 | -6/Cetus | Spotted Cetus Guard 5220 | -6/Cetus | Spotted Cetus Guard 5228 | -6/Cetus | Allies destroyed Cetus Guard 5229 | -6/Cetus | Allies destroyed Cetus Guard 5233 | -6/Cetus | Allies destroyed Cetus Guard 5233 | -6/Cetus | Allies destroyed Cetus Guard 5264 | -6/Cetus | Lost 7 allies 5342 | -6/Cetus | Started Cetus Manufacturing Module 5352 | -6/Cetus | Escorted A7 to Cetus Mainframe 5367 | -6/Cetus | Manufactured an Enhanced Grunt 5392 | -6/Cetus | Manufactured an Enhanced Grunt 5417 | -6/Cetus | Manufactured an Enhanced Grunt 5442 | -6/Cetus | Manufactured an Enhanced Grunt 5467 | -6/Cetus | Manufactured an Enhanced Grunt 5494 | -6/Cetus | Discovered new exit (range 16) 5529 | -6/Cetus | Entered Archives 5529 | -6/Archives | Accompanied by 14 allies (A7) 5534 | -6/Archives | Received a hacking code to weaken MAIN.C 5539 | -6/Archives | Build established: Commander-Mutant 5583 | -6/Archives | Lost 3 allies 5605 | -6/Archives | Discovered new exit (range 14) 5630 | -6/Archives | Discovered new exit (range 16) 5652 | -6/Archives | Discovered new exit (range 14) 5878 | -6/Archives | Unable to access archive contents 8042 | -6/Archives | Entered Hub_04(d) 8042 | -6/Hub_04(d) | Accompanied by 10 allies 8081 | -6/Hub_04(d) | Discovered new exit (range 44) 8100 | -6/Hub_04(d) | Discovered new exit (range 31) 8207 | -6/Hub_04(d) | Lost 3 allies 8260 | -6/Hub_04(d) | Discovered new exit (range 15) 8343 | -6/Hub_04(d) | Network Hub disabled 8343 | -6/Hub_04(d) | Network Hub disabled 8344 | -6/Hub_04(d) | Core integrity fell below 50% 8347 | -6/Hub_04(d) | Spotted Lightning 8348 | -6/Hub_04(d) | Spotted Lightning 8358 | -6/Hub_04(d) | Spotted Lightning 8371 | -6/Hub_04(d) | Network Hub disabled 8383 | -6/Hub_04(d) | Lost 5 allies 8390 | -6/Hub_04(d) | Spotted Lightning 8390 | -6/Hub_04(d) | Spotted Lightning 8391 | -6/Hub_04(d) | Spotted Lightning 8392 | -6/Hub_04(d) | First assault squad dispatched 8393 | -6/Hub_04(d) | Network Hub disabled 8401 | -6/Hub_04(d) | System corruption reached 10% 8426 | -6/Hub_04(d) | Entered Factory 8426 | -5/Factory | Evolved 2 slots: Utility x2 8452 | -5/Factory | Lost 8 parts (2p4n1u1w) 8854 | -5/Factory | Identified exit to Factory 8882 | -5/Factory | Build established: Scavenger-Mutant 9180 | -5/Factory | Identified exit to Upper Caves 9245 | -5/Factory | Build established: Hacker-Mutant 9479 | -5/Factory | Found Prototype Processor 9529 | -5/Factory | System corruption reached 10% 9543 | -5/Factory | Garrison activated, responded to threat 9559 | -5/Factory | Lost 3 parts (1p1n1u) 9640 | -5/Factory | Lost 4 parts (1n2u1w) 9714 | -5/Factory | Core integrity fell below 50% 9730 | -5/Factory | Entered Upper Caves 9772 | -5/Upper Caves | Lost 4 parts (2n2u) 9915 | -5/Upper Caves | Attracted the attention of an 0b10 base 10247 | -5/Upper Caves | Build established: Mutant 10416 | -5/Upper Caves | Core integrity fell below 20% 10881 | -5/Upper Caves | Discovered new exit (range 7) 10974 | -5/Upper Caves | Identified exit to Upper Caves 10978 | -5/Upper Caves | Entered another Upper Caves area 11326 | -5/Upper Caves | Identified exit to Warlord 11536 | -5/Upper Caves | Learned Factory non-interactive machine intel 11658 | -5/Upper Caves | Build established: Derelict-Mutant 11779 | -5/Upper Caves | Entered Warlord 11876 | -5/Warlord | System corruption cleaned by Quarantine Array 12664 | -5/Warlord | Warlord's base attacked by MAIN.C 12687 | -5/Warlord | Found Prototype Piercing Weapon 12687 | -5/Warlord | Identified Vortex Lance 12691 | -5/Warlord | Found Vortex Lance 12695 | -5/Warlord | Found Prototype Energy Gun 12700 | -5/Warlord | Found Prototype Energy Gun 12957 | -5/Warlord | Met Warlord 13014 | -5/Warlord | Warlord forces counterattacked 13037 | -5/Warlord | Found Prototype Reactor 13039 | -5/Warlord | Identified Vortex Chain Reactor 13048 | -5/Warlord | Found Prototype Processor 13050 | -5/Warlord | Found Prototype Device 13062 | -5/Warlord | Identified Vortex Rail (x2) 13064 | -5/Warlord | Identified Exp. Targeting Computer 13097 | -5/Warlord | Identified System Purifier 13100 | -5/Warlord | Identified Spectral Analyzer 13211 | -5/Warlord | Spotted Striker 13215 | -5/Warlord | Spotted Striker 13217 | -5/Warlord | Spotted Executioner 13218 | -5/Warlord | Destroyed Striker 13300 | -5/Warlord | Lost 6 allies 13339 | -5/Warlord | Warlord base infiltrated, sounded retreat 13383 | -5/Warlord | Found Prototype Ballistic Cannon 13395 | -5/Warlord | Identified Hvy. Autocannon 13402 | -5/Warlord | Lost 3 allies 13414 | -5/Warlord | Found Prototype Processor 13415 | -5/Warlord | Identified Exp. Core Analyzer 13434 | -5/Warlord | P-80 Master assimilated allied GC-RPP(c) 13434 | -5/Warlord | Spotted Executioner 13435 | -5/Warlord | Spotted Executioner 13492 | -5/Warlord | Spotted Striker 13535 | -5/Warlord | Lost 12 allies 13544 | -5/Warlord | Discovered new exit (range 14) 13549 | -5/Warlord | Identified exit to Proximity Caves 13556 | -5/Warlord | Entered Proximity Caves 13592 | -4/Proximity Caves | Learned location of Quarantine (-3) 13813 | -4/Proximity Caves | Build established: Scavenger-Scout 14276 | -4/Proximity Caves | Discovered exit to Factory (range 9) 14281 | -4/Proximity Caves | Spotted B-86 Titan 14282 | -4/Proximity Caves | Entered Factory 14282 | -4/Factory | Evolved 2 slots: Power x1, Utility x1 14283 | -4/Factory | Loaded intel: 218 non-interactive machine locations 14312 | -4/Factory | Spotted B-86 Titan 14380 | -4/Factory | Identified exit to Upper Caves 14462 | -4/Factory | Entered Upper Caves 14487 | -4/Upper Caves | Learned 8 Research zone layouts 14579 | -4/Upper Caves | Build established: Scavenger-Ninja 14782 | -4/Upper Caves | Discovered new exit (range 17) 15890 | -4/Upper Caves | Spotted B-86 Titan 16481 | -4/Upper Caves | Identified exit to Upper Caves 16483 | -4/Upper Caves | Entered another Upper Caves area 16620 | -4/Upper Caves | Discovered new exit (range 5) 16626 | -4/Upper Caves | Identified exit to Research 16643 | -4/Upper Caves | Encountered a Warlord checkpoint 17030 | -4/Upper Caves | Discovered new exit (range 11) 17417 | -4/Upper Caves | Attracted the attention of an 0b10 checkpoint 17428 | -4/Upper Caves | Learned Research garrison access intel 17432 | -4/Upper Caves | Acquired the password to a Derelict Tinkerer's latest research 17441 | -4/Upper Caves | Found Prototype Special Weapon 17566 | -4/Upper Caves | Identified exit to Zhirov 17566 | -4/Upper Caves | Entered Zhirov 17566 | -4/Zhirov | Discovered new exit (range 3) 17574 | -4/Zhirov | Met Zhirov 17582 | -4/Zhirov | Learned location of Command (-1) 17591 | -4/Zhirov | Zhirov requested help retrieving the SGEMP Prototype 17598 | -4/Zhirov | Found Alien Artifact 17598 | -4/Zhirov | Identified Integrated Reactor 17598 | -4/Zhirov | Installed Integrated Reactor, increased core energy generation (+10) 17653 | -4/Zhirov | Identified Molecular Deconstructor 17898 | -4/Zhirov | Found Alien Artifact 17947 | -4/Zhirov | Identified exit to Proximity Caves 17953 | -4/Zhirov | Entered Proximity Caves 18407 | -3/Proximity Caves | Found Alien Artifact 18407 | -3/Proximity Caves | Identified Core Expander 18407 | -3/Proximity Caves | Installed Core Expander, added new Power slot 18426 | -3/Proximity Caves | Discovered exit to Research (range 5) 18472 | -3/Proximity Caves | Entered Research 18472 | -3/Research | Evolved 2 slots: Propulsion x2 18473 | -3/Research | Identified exit to Research 18474 | -3/Research | Loaded intel: 3 garrison access locations 18681 | -3/Research | Spotted B-86 Titan 18725 | -3/Research | Identified exit to Armory 18725 | -3/Research | Identified exit to Quarantine 18942 | -3/Research | Entered Quarantine 19078 | -3/Quarantine | Found Alien Energy Cannon 19126 | -3/Quarantine | Found Alien Artifact 19362 | -3/Quarantine | Found Alien Slashing Weapon 19362 | -3/Quarantine | Identified Sigix Broadsword 19392 | -3/Quarantine | Found Alien Impact Weapon 19405 | -3/Quarantine | Entered Research 19405 | -2/Research | Warlord forces began assault on 0b10 19405 | -2/Research | Evolved 2 slots: Utility x1, Weapon x1 19406 | -2/Research | Identified Phase Armor 19438 | -2/Research | Discovered new exit (range 12) 19515 | -2/Research | Research machine network offline 19556 | -2/Research | Met up with Warlord 19604 | -2/Research | Found Gamma Bomb Array 19616 | -2/Research | Found Prototype Device 19617 | -2/Research | Identified Adv. Kinecellerator 19717 | -2/Research | Found Prototype Launcher 19721 | -2/Research | Identified Tesla Bomb Launcher 19746 | -2/Research | Spotted Executioner 19746 | -2/Research | Spotted Executioner 19748 | -2/Research | Build established: Scout 19802 | -2/Research | Lost 4 allies 19858 | -2/Research | Borebot progress halted 19882 | -2/Research | Identified exit to Access 20071 | -2/Research | Found Exp. Hacking Suite 20140 | -2/Research | Spotted Executioner 20369 | -2/Research | Spotted Striker 20369 | -2/Research | Spotted Executioner 20384 | -2/Research | Discovered exit to Access (range 24) 20426 | -2/Research | Spotted Executioner 20741 | -2/Research | Spotted Striker 20755 | -2/Research | Spotted Striker 20765 | -2/Research | Spotted Striker 20853 | -2/Research | Spotted HR-XED(K) 20886 | -2/Research | Lost 3 allies 20961 | -2/Research | Discovered new exit (range 6) 20994 | -2/Research | Identified exit to Testing 21004 | -2/Research | Entered Testing 21046 | -2/Testing | Found Prototype Energy Gun 21046 | -2/Testing | Identified Tachyon Dispersion Ray 21056 | -2/Testing | Garrison activated, responded to threat 21132 | -2/Testing | Found Prototype Energy Cannon 21134 | -2/Testing | Identified Cld. Nova Cannon 21163 | -2/Testing | Garrison activated, responded to threat 21196 | -2/Testing | Found Prototype Launcher 21209 | -2/Testing | Found Prototype Launcher 21214 | -2/Testing | Spotted Striker 21214 | -2/Testing | Spotted Striker 21243 | -2/Testing | Identified Hellfire Missile Launcher 21244 | -2/Testing | Identified Ragnarok Missile Launcher 21261 | -2/Testing | Found Prototype Energy Cannon 21262 | -2/Testing | Identified Hpw. Disruptor Cannon 21382 | -2/Testing | Found Prototype Device 21433 | -2/Testing | Identified Beam Splitter 21504 | -2/Testing | Entered Access 21504 | -1/Access | Evolved 2 slots: Utility x1, Weapon x1 21752 | -1/Access | Identified exit to Command 21817 | -1/Access | Build established: Hacker-Ninja 21885 | -1/Access | Spotted B-99 Colossus 21929 | -1/Access | Spotted B-99 Colossus 22197 | -1/Access | Entered Command 22281 | -1/Command | Phase Generator disabled 22491 | -1/Command | First assault squad dispatched 22515 | -1/Command | Destroyed 7 combat bots 22600 | -1/Command | Spotted B-99 Colossus 22813 | -1/Command | Identified Core Cannon 22889 | -1/Command | Disengaged cave seal 22896 | -1/Command | Welcomed Warlord to Command 22936 | -1/Command | Identified Core Stripper 22949 | -1/Command | Spotted Alpha 7 22951 | -1/Command | Spotted Striker 22969 | -1/Command | Spotted Executioner 23019 | -1/Command | Disengaged cave seal 23019 | -1/Command | Derelicts emerged from the dark tunnel 23034 | -1/Command | High security lockdown imminent 23035 | -1/Command | Attacked by Warlord forces 23035 | -1/Command | Spotted 1B-DU9(K) 23035 | -1/Command | Spotted 8K-NOW(g) 23035 | -1/Command | Spotted BQ-2OB(B) 23035 | -1/Command | Spotted W7-22Z(g) 23055 | -1/Command | Destroyed 9 combat bots 23062 | -1/Command | Lost 11 allies 23114 | -1/Command | High security lockdown engaged 23193 | -1/Command | Spotted Striker 23300 | -1/Command | Spotted Investigator 23317 | -1/Command | Spotted M Guard 23317 | -1/Command | Spotted M Guard 23317 | -1/Command | Spotted Combat Programmer 23317 | -1/Command | Spotted Combat Programmer 23369 | -1/Command | Destroyed Combat Programmer 23377 | -1/Command | Destroyed Combat Programmer 23429 | -1/Command | Crushed by falling debris 23429 | -1/Command | Core integrity fell below 50% 23429 | -1/Command | System corruption reached 10% 23460 | -1/Command | Lost 11 parts (3p1n6u1w) 23566 | -1/Command | Found Prototype Processor 23566 | -1/Command | Identified Exp. Melee Analysis Suite 23667 | -1/Command | Build established: Scavenger-Gunner 23667 | -1/Command | Met MAIN.C 23669 | -1/Command | Hacked MAIN.C using A7's code 23682 | -1/Command | 0b10 Conduit disabled 23690 | -1/Command | Spotted Executioner 23690 | -1/Command | Spotted Striker 23693 | -1/Command | Spotted Striker 23693 | -1/Command | Spotted Executioner 23693 | -1/Command | Spotted Executioner 23693 | -1/Command | Spotted Striker 23696 | -1/Command | Spotted Striker 23698 | -1/Command | Destroyed Executioner 23698 | -1/Command | Spotted Striker 23700 | -1/Command | Spotted Striker 23700 | -1/Command | Spotted Executioner 23701 | -1/Command | Spotted Executioner 23702 | -1/Command | Destroyed Executioner 23705 | -1/Command | Destroyed Striker 23705 | -1/Command | Spotted Executioner 23705 | -1/Command | Spotted Executioner 23708 | -1/Command | Spotted Striker 23709 | -1/Command | Core integrity fell below 20% 23725 | -1/Command | Destroyed by MAIN.C with Heavy Quantum Rifle Last Messages --------------- 23711_ Adv. Target Analyzer destroyed. 23711_ Penetrated by Slug. 23711_ Biometal Heavy Treads destroyed. 23711_ Slug penetrates Reinforced Barrier. 23711_ Acquired 13 matter. 23712_ MAIN.C reaction time slowed by virus. 23712_ C-30 ARC bursts open, deploying its payload. 23712_ L-61 Swordsman unfolds itself. 23712_ E-15 Imp unfolds itself. 23713_ MAIN.C reaction time slowed by virus. 23713_ Knocked back. 23715_ MAIN.C reaction time slowed by virus. 23719_ 0b10 Conduit collapses. 23721_ MAIN.C reaction time slowed by virus. 23722_ 0b10 Conduit collapses. 23725_ P-80 Master knocked back. 23725_ Adv. Heat Sink destroyed. [Achievement: Collector] Map ----- +----------------------------------------------------+ | ?????????????????????????????????????????????????? | | ?????????????????????????????????????????????????? | | ?????????????????????????????????????????????????? | | ?????????????????????????????????????????????????? | | ?????????????????????????????????????????????????? | | ?????????????????????????????????????????????????? | | ?????????????????????????????????????????????????? | | ??????????????????????????????????#############??? | | ??????????????????????????????????"""" #??? | | ??????????????????????????????????"" #??? | | ??????????????????????????????????"" #### | | ?????????????????????????????????""" %"% | | ?????????????????????????????????""" ![ % | | ??????????????????????????? "??""" !|]]* | | ?????????????????????????"? "??""" !]!#### | | ????????????????????????? " """""" *#??? | | ????????????????????????# " "" % %#??? | | ????????????????????????# " "MMM #??? | | ????????????????????????#"""""""""MMM " ""#??? | | ????????????????????????#"" %MMM""""" %""#??? | | ????????????????????????# % " """"" """#??? | | ????????????????????????# " " " " #??? | | ????????????????????????# " " " #??? | | ????????????????????????" " " " " " #??? | | ????????????????????????" " " " " """" #??? | | ????????????????????????"@ " " " " #??? | | ????????????????????????# K p K""" " " #??? | | ????????????????????????# K Ke """"""#??? | | ????????????????????????# % " " #??? | | ????????????????????????#######################??? | | ?????????????????????????????????????????????????? | | ?????????????????????????????????????????????????? | | ?????????????????????????????????????????????????? | | ?????????????????????????????????????????????????? | | ?????????????????????????????????????????????????? | | ?????????????????????????????????????????????????? | | ?????????????????????????????????????????????????? | | ?????????????????????????????????????????????????? | | ?????????????????????????????????????????????????? | | ?????????????????????????????????????????????????? | | ?????????????????????????????????????????????????? | | ?????????????????????????????????????????????????? | | ?????????????????????????????????????????????????? | | ?????????????????????????????????????????????????? | | ?????????????????????????????????????????????????? | | ?????????????????????????????????????????????????? | | ?????????????????????????????????????????????????? | | ?????????????????????????????????????????????????? | | ?????????????????????????????????????????????????? | | ?????????????????????????????????????????????????? | +----------------------------------------------------+ Best States ------------- Heat Dissipation 102 Coolant Potential 100 Energy Generation 83 Energy Capacity 940 Matter Stores 560 Matter Capacity 600 Sight Range 24 Robot Scan Range 18 Terrain Scan Range 24 Terrain Scan Density 210 ECM Strength 2 Jamming Range 16 Cloak Strength 3 Base Temperature (-) 200 Corruption Block 20 Armor Coverage 800 Resistance: KI 30 Resistance: TH 75 Propulsion Shielding 66 Weapon Shielding 90 Point Defense Rating 480 Weapon Cycling 30 Melee Speed Boost 50 Evasion (%) 68 Targeting Accuracy 12 Melee Accuracy 16 Target Analysis 8 Core Analysis 8 Armor Integrity Analysis 30 Recoil Reduction 6 Offensive Hacking 16 Defensive Hacking 14 Item Schematics ----------------- Huge Storage Unit | -8/Recycling | Hacked Matter Compressor | -6/Extension | Hacked Adv. Sensor Array | -5/Factory | Hacked Adv. Signal Interpreter | -5/Factory | Hacked Arm. Heavy Treads | -5/Factory | Hacked Assault Drone Bay | -4/Zhirov | Free Exp. Heat Sink | -4/Zhirov | Free Exp. Optical Array | -4/Zhirov | Free Imp. Arc Thrower | -4/Zhirov | Free Lrn. Sensor Array | -3/Quarantine | Scanalyzed Lrn. Tractor Beam | -3/Quarantine | Scanalyzed Adv. System Shield | -2/Testing | Scanalyzed System Purifier | -2/Testing | Scanalyzed Robot Schematics ------------------ None Fabricated ------------ Nothing Alien Tech Used ----------------- Integrated Reactor Core Expander Sigix Broadsword Phase Armor Core Cannon Core Stripper Achievements -------------- 404 Collector Challenges ------------ None Game ------ Seed DefenseTargetingFirepult Manual? 0 Play Time 10:51:43 Cumulative 235.9 hours Start 2024.04.27 @ 20:05:57 End 2024.04.29 @ 01:06:46 Sessions 7 Manual Loads 0 Difficulty Rogue Special Mode None Game No. 59 Rogue 59 Adventurer 0 Explorer 0 Win Type - Total 15 Types 8/2/3/1/1/0/0/0/0 Lore% 53 Gallery% 75 Achievement% 66 Wizard Run 0 Options --------- Layout 1 ASCII 0 Keyboard 0 Movement Numpad Keybinds 0 Fullscreen 1 Font 24/Smallcaps Map View 50x35 Zoom Use 2% Tactical HUD 1 Map Filters NONE Filters NONE Steam 1 RUN: eb62be1f-13e2-4985-984f-5b02febe2ac5